fUSD/lending_fUSD_20250226
["ID","MTS","AMOUNT","RATE_DAILY","PERIOD"]
[354558829,1740574284423,-901.53,0.00041917,14]
[354558830,1740574284434,-1420.08,0.00041917,14]
[354558831,1740574284444,-500.0,0.00041917,14]
[354558832,1740574284456,-2314.83,0.00041917,14]
[354558833,1740574284468,-502.61252923,0.00041917,14]
[354558834,1740574284480,-2050.0,0.00041917,14]
[354558835,1740574284491,-500.0,0.00041917,14]
[354558836,1740574284504,-500.0,0.00041917,14]
[354558837,1740574284808,-1281.21,0.00041917,14]
[354558838,1740574284818,-1735.4,0.00041917,14]
[354558839,1740574284828,-511.25,0.00041917,14]
[354558840,1740574284837,-579.58,0.00041917,14]
[354558841,1740574284846,-500.0,0.00041917,14]
[354558842,1740574284856,-500.0,0.00041917,14]
[354558843,1740574284866,-502.14485479,0.00041917,14]
[354558844,1740574284878,-1942.92,0.00041917,14]
[354558845,1740574284887,-500.0,0.00041917,14]
[354558846,1740574284896,-502.65124587,0.00041917,14]
[354558847,1740574284906,-1668.57,0.00041917,14]
[354558848,1740574284916,-500.0,0.00041917,14]
[354558849,1740574284925,-529.49,0.00041917,14]
[354558850,1740574284934,-1899.64,0.00041917,14]
[354558851,1740574284943,-1053.46,0.00041917,14]
[354558852,1740574284952,-1050.4,0.00041917,14]
[354558853,1740574284962,-1488.98,0.00041917,14]
[354558854,1740574284971,-1080.14,0.00041917,14]
[354558855,1740574284980,-500.0,0.00041917,14]
[354558856,1740574284990,-500.0,0.00041917,14]
[354558857,1740574284999,-500.0,0.00041917,14]
[354558858,1740574285009,-949.33,0.00041917,14]
[354558859,1740574285018,-1162.22,0.00041917,14]
[354558860,1740574285027,-500.0,0.00041917,14]
[354558861,1740574285037,-1577.0,0.00041917,14]
[354558862,1740574285047,-502.84241338,0.00041917,14]
[354558863,1740574285057,-546.53,0.00041917,14]
[354558864,1740574285066,-1998.09,0.00041917,14]
[354558865,1740574285076,-1125.99,0.00041917,60]
[354558866,1740574285085,-522.12,0.00041917,14]
[354558867,1740574285095,-661.11,0.00041917,14]
[354558868,1740574285104,-316.25372305,0.00041917,14]
[354558869,1740574285114,-500.0,0.00041917,14]
[354558870,1740574285124,-615.64,0.00041917,14]
[354558871,1740574285135,-606.73,0.00041917,14]
[354558872,1740574285145,-1980.48,0.00041917,14]
[354558873,1740574285155,-1526.5,0.00041917,14]
[354558874,1740574285164,-500.0,0.00041917,14]
[354558875,1740574285174,-500.0,0.00041917,14]
[354558876,1740574285185,-505.47,0.00041917,14]
[354558877,1740574285194,-1411.36,0.00041917,14]
[354558878,1740574285204,-1366.82,0.00041917,14]
[354558879,1740574285214,-893.99,0.00041917,14]
[354558880,1740574285224,-500.0,0.00041917,14]
[354558881,1740574285234,-2624.83,0.00041917,14]
[354558882,1740574285244,-905.11,0.00041917,14]
[354558883,1740574285253,-779.37,0.00041917,14]
[354558884,1740574285263,-500.0,0.00041917,14]
[354558885,1740574285272,-500.0,0.00041917,14]
[354558886,1740574285283,-500.0,0.00041917,14]
[354558887,1740574285293,-500.0,0.00041917,14]
[354558888,1740574285303,-1412.34,0.00041917,14]
[354558889,1740574285312,-500.0,0.00041917,14]
[354558890,1740574285322,-885.59,0.00041917,14]
[354558891,1740574285331,-1668.45,0.00041917,14]
[354558892,1740574285341,-907.5,0.00041917,14]
[354558893,1740574285351,-500.0,0.00041917,14]
[354558894,1740574285360,-1775.54,0.00041917,14]
[354558895,1740574285370,-1266.21,0.00041917,14]
[354558896,1740574285382,-890.84,0.00041917,14]
[354558897,1740574285392,-617.6,0.00041917,14]
[354558898,1740574285402,-500.0,0.00041917,14]
[354558899,1740574285412,-500.0,0.00041917,14]
[354558900,1740574285421,-500.0,0.00041917,14]
[354558901,1740574285431,-636.43,0.00041917,14]
[354558902,1740574285441,-1022.26,0.00041917,14]
[354558903,1740574285451,-1493.14,0.00041917,14]
[354558904,1740574285460,-3457.82,0.00041917,14]
[354558905,1740574285470,-1199.79,0.00041917,14]
[354558906,1740574285480,-1340.84,0.00041917,14]
[354558907,1740574285489,-790.19,0.00041917,14]
[354558908,1740574285499,-1018.91,0.00041917,14]
[354558909,1740574285509,-1109.52,0.00041917,14]
[354558910,1740574285522,-500.0,0.00041917,14]
[354558911,1740574285532,-500.0,0.00041917,14]
[354558912,1740574285542,-500.0,0.00041917,14]
[354558913,1740574285552,-2063.9,0.00041917,14]
[354558914,1740574285565,-706.67748537,0.00041917,14]
[354558915,1740574285972,-718.74251463,0.00041917,14]
[354558916,1740574285982,-103.7094688,0.00041917,14]
[354558917,1740574286719,-619.15,0.00024932,2]
[354558918,1740574286788,-619.40000017,0.00024932,2]
[354558919,1740574286912,-883.87,0.00024932,2]
[354558920,1740574286926,-274.27984309,0.00024932,2]
[354558921,1740574286938,-708.592,0.00024932,2]
[354558922,1740574286949,-982.17149877,0.00024932,2]
[354558923,1740574286964,-3995.57387954,0.00024932,2]
[354558928,1740574947531,-200.0,0.00021918,2]
[354558929,1740574947559,-250.0,0.00022116,2]
[354558930,1740574947587,-150.0,0.00022314,2]
[354558931,1740574947614,-190.39316738,0.00022611,2]
[354558932,1740574947643,-300.0,0.0002271,2]
[354558933,1740574947672,-1025.75397794,0.0002271,2]
[354558934,1740574947700,-90031.35310665,0.00022711,2]
[354558935,1740574947731,-852.70751871,0.00022711,2]
[354558936,1740574947763,-250.0,0.0002358,2]
[354558937,1740574947794,-150.0,0.0002411,2]
[354558938,1740574947823,-250.0,0.0002411,2]
[354558939,1740574947853,-177.17,0.00026849,2]
[354558940,1740574947882,-500.0,0.00027966,30]
[354558941,1740574947914,-267.5655,0.00035888,7]
[354558942,1740574947945,-250.0,0.000362,2]
[354558943,1740574947974,-344.22812849,0.000362,2]
[354558944,1740574948003,-156.49,0.00038264,2]
[354558945,1740574948033,-286.29,0.00038444,120]
[354558946,1740574948061,-156.49,0.00038647,2]
[354558947,1740574948090,-156.49,0.00039029,2]
[354558948,1740574948119,-1080.45,0.00039353,120]
[354558949,1740574948148,-156.49,0.00039412,2]
[354558950,1740574948175,-1358.52,0.00039504,2]
[354558951,1740574948205,-150.0,0.00039609,30]
[354558952,1740574948237,-150.0,0.00039609,30]
[354558953,1740574948266,-408.08835572,0.00039609,30]
[354558954,1740574948295,-4194.55269735,0.00039609,30]
[354558955,1740574948323,-150.0,0.00039609,30]
[354558956,1740574948350,-2000.0,0.000397,120]
[354558957,1740574948380,-156.49,0.00039795,2]
[354558958,1740574948408,-206.6283617,0.000399,8]
[354558959,1740574948436,-1060.0,0.00039932,5]
[354558960,1740574948469,-628.08,0.0004,120]
[354558961,1740574952210,535.51,0.00037657,2]
[354558962,1740574952270,535.51,0.00039921,2]
[354558963,1740574952402,1530.77335919,0.00024,120]
[354558964,1740574964535,79935.80799996,0.00025,60]
[354558965,1740574983741,150.0,0.00039609,30]
[354558966,1740574987501,150.0,0.00039609,30]
[354558967,1740574988789,150.0,0.00039609,30]
[354558968,1740574994380,296.47068458,0.00039609,30]
[354558969,1740574998190,3325.64215788,0.00039609,30]
[354558970,1740574999379,336.57351247,0.00039609,30]
[354558972,1740575031867,500.0,0.00024932,2]
[354558973,1740575032310,500.0,0.00024932,2]
[354558974,1740575032700,500.0,0.00024932,2]
[354558975,1740575041338,585.0,0.0004,2]
[354558976,1740575041419,200.0,0.0003991,2]
[354558977,1740575047734,1487.83,0.00038356,14]
[354558978,1740575047907,1487.83,0.0003863,14]
[354558979,1740575048065,1487.83,0.00038904,14]
[354558980,1740575048409,1487.83,0.00039178,14]
[354558981,1740575048517,1487.83,0.00039452,14]
[354558982,1740575048575,500.0,0.00038356,14]
[354558983,1740575048799,271.45482593,0.0003863,14]
[354558984,1740575048838,1487.83,0.00039726,14]
[354558985,1740575049443,1487.83,0.0004,14]
[354558986,1740575050858,500.0,0.00038356,14]
[354558987,1740575051105,500.0,0.0003863,14]
[354558988,1740575051353,512.49199601,0.00038904,14]
[354558989,1740575051401,423.08,0.00038356,14]
[354558990,1740575051650,423.08,0.0003863,14]
[354558991,1740575051881,423.08,0.00038904,14]
[354558992,1740575052129,423.08,0.00039178,14]
[354558993,1740575052372,423.08,0.00039452,14]
[354558994,1740575052604,423.08,0.00039726,14]
[354558995,1740575052996,423.08,0.0004,14]
[354558996,1740575053340,2229.8,0.00038356,14]
[354558997,1740575053373,15415.18,0.00038356,14]
[354558998,1740575053611,15415.18,0.0003863,14]
[354558999,1740575053661,2229.8,0.0003863,14]
[354559000,1740575053857,15415.18,0.00038904,14]
[354559001,1740575053928,2229.8,0.00038904,14]
[354559002,1740575054134,15415.18,0.00039178,14]
[354559003,1740575054171,2229.8,0.00039178,14]
[354559004,1740575054376,15415.18,0.00039452,14]
[354559005,1740575054423,2229.8,0.00039452,14]
[354559006,1740575054623,15415.18,0.00039726,14]
[354559007,1740575054684,2229.8,0.00039726,14]
[354559008,1740575054877,15415.18,0.0004,14]
[354559009,1740575054937,2229.8,0.0004,14]
[354559010,1740575055492,1619.1,0.00038356,14]
[354559011,1740575055738,1619.1,0.0003863,14]
[354559012,1740575055979,1619.1,0.00038904,14]
[354559013,1740575056228,1619.1,0.00039178,14]
[354559014,1740575056481,1619.1,0.00039452,14]
[354559015,1740575056765,1619.1,0.00039726,14]
[354559016,1740575056983,1619.1,0.0004,14]
[354559017,1740575058198,1479.23,0.00038356,14]
[354559018,1740575058267,1479.23,0.0003863,14]
[354559019,1740575058463,1479.23,0.00038904,14]
[354559020,1740575058703,1479.23,0.00039178,14]
[354559021,1740575058937,1479.23,0.00039452,14]
[354559022,1740575059265,1479.23,0.00039726,14]
[354559023,1740575059525,1479.23,0.0004,14]
[354559024,1740575060880,2097.27,0.00038356,14]
[354559025,1740575061088,2097.27,0.0003863,14]
[354559026,1740575061340,2097.27,0.00038904,14]
[354559027,1740575061647,2097.27,0.00039178,14]
[354559028,1740575061840,2097.27,0.00039452,14]
[354559029,1740575061897,1319.58,0.00038356,14]
[354559030,1740575062107,2097.27,0.00039726,14]
[354559031,1740575062155,1319.58,0.0003863,14]
[354559032,1740575062350,2097.27,0.0004,14]
[354559033,1740575062423,1319.58,0.00038904,14]
[354559034,1740575062685,1319.58,0.00039178,14]
[354559035,1740575062959,1319.58,0.00039452,14]
[354559036,1740575063214,1319.58,0.00039726,14]
[354559037,1740575063471,1319.58,0.0004,14]
[354559038,1740575063775,900.12,0.00038356,14]
[354559039,1740575064020,900.12,0.0003863,14]
[354559040,1740575064322,900.12,0.00038904,14]
[354559041,1740575064546,900.12,0.00039178,14]
[354559042,1740575064786,900.12,0.00039452,14]
[354559043,1740575065068,900.12,0.00039726,14]
[354559044,1740575065285,900.12,0.0004,14]
[354559045,1740575065546,1076.44,0.00038356,14]
[354559046,1740575065767,1076.44,0.0003863,14]
[354559047,1740575066019,1076.44,0.00038904,14]
[354559048,1740575066268,1076.44,0.00039178,14]
[354559049,1740575066523,1076.44,0.00039452,14]
[354559050,1740575066767,1076.44,0.00039726,14]
[354559051,1740575067027,1076.44,0.0004,14]
[354559052,1740575068604,500.0,0.00038356,14]
[354559053,1740575068751,500.0,0.0003863,14]
[354559054,1740575068985,500.0,0.00038904,14]
[354559055,1740575069111,376.49065329,0.00039178,14]
[354559056,1740575070023,551.17,0.00038356,14]
[354559057,1740575070298,551.17,0.0003863,14]
[354559058,1740575070851,551.17,0.00038904,14]
[354559059,1740575071178,551.17,0.00039178,14]
[354559060,1740575071433,551.17,0.00039452,14]
[354559061,1740575071678,551.17,0.00039726,14]
[354559062,1740575071923,551.17,0.0004,14]
[354559063,1740575072719,2542.82,0.00038356,14]
[354559064,1740575072972,2542.82,0.0003863,14]
[354559065,1740575072996,888.15,0.00038356,14]
[354559066,1740575073238,888.15,0.0003863,14]
[354559067,1740575073268,2542.82,0.00038904,14]
[354559068,1740575073365,2896.43,0.00038356,14]
[354559069,1740575073495,888.15,0.00038904,14]
[354559070,1740575073523,2542.82,0.00039178,14]
[354559071,1740575073607,2896.43,0.0003863,14]
[354559072,1740575073753,888.15,0.00039178,14]
[354559073,1740575073780,2542.82,0.00039452,14]
[354559074,1740575073863,2896.43,0.00038904,14]
[354559075,1740575074020,888.15,0.00039452,14]
[354559076,1740575074047,2542.82,0.00039726,14]
[354559077,1740575074102,2896.43,0.00039178,14]
[354559078,1740575074133,2000.0,0.00035616,120]
[354559079,1740575074264,888.15,0.00039726,14]
[354559080,1740575074290,2542.82,0.0004,14]
[354559081,1740575074365,2896.43,0.00039452,14]
[354559082,1740575074607,2896.43,0.00039726,14]
[354559083,1740575074871,2896.43,0.0004,14]
[354559084,1740575075522,888.15,0.0004,14]
[354559085,1740575075659,500.0,0.00038356,14]
[354559086,1740575076189,500.0,0.0003863,14]
[354559087,1740575076758,500.0,0.00038904,14]
[354559088,1740575076813,500.0,0.00039178,14]
[354559089,1740575076957,500.0,0.00039452,14]
[354559090,1740575077346,500.0,0.00039726,14]
[354559091,1740575077589,500.0,0.0004,14]
[354559092,1740575078343,150.0,0.00039575,2]
[354559093,1740575080028,1019.59,0.00038356,14]
[354559094,1740575080301,1019.59,0.0003863,14]
[354559095,1740575080538,1019.59,0.00038904,14]
[354559096,1740575080797,1019.59,0.00039178,14]
[354559097,1740575081047,1019.59,0.00039452,14]
[354559098,1740575081316,1019.59,0.00039726,14]
[354559099,1740575081621,1019.59,0.0004,14]
[354559100,1740575083363,255.00885497,0.00038356,14]
[354559101,1740575086179,877.26,0.00038356,14]
[354559102,1740575086456,877.26,0.0003863,14]
[354559103,1740575086696,877.26,0.00038904,14]
[354559104,1740575086935,877.26,0.00039178,14]
[354559105,1740575087200,877.26,0.00039452,14]
[354559106,1740575087318,1272.09,0.00038356,14]
[354559107,1740575087553,1272.09,0.0003863,14]
[354559108,1740575087584,851.36,0.00038356,14]
[354559109,1740575087713,877.26,0.00039726,14]
[354559110,1740575087811,851.36,0.0003863,14]
[354559111,1740575087850,1272.09,0.00038904,14]
[354559112,1740575087958,500.0,0.00038356,14]
[354559113,1740575087985,877.26,0.0004,14]
[354559114,1740575088059,1272.09,0.00039178,14]
[354559115,1740575088086,851.36,0.00038904,14]
[354559116,1740575088210,500.0,0.0003863,14]
[354559117,1740575088305,1272.09,0.00039452,14]
[354559118,1740575088360,851.36,0.00039178,14]
[354559119,1740575088557,500.0,0.00038904,14]
[354559120,1740575088592,1272.09,0.00039726,14]
[354559121,1740575088691,851.36,0.00039452,14]
[354559122,1740575088749,500.0,0.00039178,14]
[354559123,1740575088955,851.36,0.00039726,14]
[354559124,1740575089382,500.0,0.00039452,14]
[354559125,1740575089686,1272.09,0.0004,14]
[354559126,1740575089729,851.36,0.0004,14]
[354559127,1740575089756,500.0,0.00039726,14]
[354559128,1740575089816,500.0,0.0004,14]
[354559129,1740575091960,990.23,0.00038356,14]
[354559130,1740575092197,990.23,0.0003863,14]
[354559131,1740575092493,990.23,0.00038904,14]
[354559132,1740575092758,990.23,0.00039178,14]
[354559133,1740575092884,922.72,0.00038356,14]
[354559134,1740575093146,922.72,0.0003863,14]
[354559135,1740575093199,990.23,0.00039452,14]
[354559136,1740575093375,922.72,0.00038904,14]
[354559137,1740575093492,990.23,0.00039726,14]
[354559138,1740575093627,922.72,0.00039178,14]
[354559139,1740575093741,990.23,0.0004,14]
[354559140,1740575093863,922.72,0.00039452,14]
[354559141,1740575094102,922.72,0.00039726,14]
[354559142,1740575094359,922.72,0.0004,14]
[354559143,1740575094779,4369.71,0.00038356,14]
[354559144,1740575095101,4369.71,0.0003863,14]
[354559145,1740575095341,4369.71,0.00038904,14]
[354559146,1740575096087,4369.71,0.00039178,14]
[354559147,1740575096336,4369.71,0.00039452,14]
[354559148,1740575096589,4369.71,0.00039726,14]
[354559149,1740575097171,4369.71,0.0004,14]
[354559150,1740575097900,1390.38,0.00038356,14]
[354559151,1740575097964,1390.38,0.0003863,14]
[354559152,1740575098163,906.93,0.00038356,14]
[354559153,1740575098220,1390.38,0.00038904,14]
[354559154,1740575098402,906.93,0.0003863,14]
[354559155,1740575098454,1390.38,0.00039178,14]
[354559156,1740575098657,906.93,0.00038904,14]
[354559157,1740575098687,1390.38,0.00039452,14]
[354559158,1740575098948,906.93,0.00039178,14]
[354559159,1740575099001,1390.38,0.00039726,14]
[354559160,1740575099133,906.93,0.00039452,14]
[354559161,1740575099254,1390.38,0.0004,14]
[354559162,1740575099809,906.93,0.00039726,14]
[354559163,1740575099867,906.93,0.0004,14]
[354559164,1740575102534,500.0,0.00038356,14]
[354559165,1740575102817,322.03241137,0.0003863,14]
[354559166,1740575103829,4852.6,0.00038356,14]
[354559167,1740575104118,4852.6,0.0003863,14]
[354559168,1740575104375,4852.6,0.00038904,14]
[354559169,1740575104681,4852.6,0.00039178,14]
[354559170,1740575104708,979.23,0.00038356,14]
[354559171,1740575104932,4852.6,0.00039452,14]
[354559172,1740575104958,979.23,0.0003863,14]
[354559173,1740575105169,4852.6,0.00039726,14]
[354559174,1740575105209,979.23,0.00038904,14]
[354559175,1740575105422,4852.6,0.0004,14]
[354559176,1740575105454,979.23,0.00039178,14]
[354559177,1740575105703,813.8,0.00038356,14]
[354559178,1740575105730,979.23,0.00039452,14]
[354559179,1740575105960,813.8,0.0003863,14]
[354559180,1740575106225,813.8,0.00038904,14]
[354559181,1740575106299,848.06,0.00038356,14]
[354559182,1740575106504,200.0,0.0004,7]
[354559183,1740575106532,813.8,0.00039178,14]
[354559184,1740575106669,848.06,0.0003863,14]
[354559185,1740575106814,813.8,0.00039452,14]
[354559186,1740575106932,848.06,0.00038904,14]
[354559187,1740575107030,813.8,0.00039726,14]
[354559188,1740575107176,848.06,0.00039178,14]
[354559189,1740575107294,813.8,0.0004,14]
[354559190,1740575107433,848.06,0.00039452,14]
[354559191,1740575107677,848.06,0.00039726,14]
[354559192,1740575107722,979.23,0.00039726,14]
[354559193,1740575107918,848.06,0.0004,14]
[354559194,1740575107959,979.23,0.0004,14]
[354559195,1740575112371,1166.79,0.00038356,14]
[354559196,1740575112619,1166.79,0.0003863,14]
[354559197,1740575112879,1166.79,0.00038904,14]
[354559198,1740575113139,1166.79,0.00039178,14]
[354559199,1740575113406,1166.79,0.00039452,14]
[354559200,1740575113721,1166.79,0.00039726,14]
[354559201,1740575114068,1166.79,0.0004,14]
[354559202,1740575114606,2574.68,0.00038356,14]
[354559203,1740575114889,2574.68,0.0003863,14]
[354559204,1740575115061,935.21,0.00038356,14]
[354559205,1740575115192,2574.68,0.00038904,14]
[354559206,1740575115307,935.21,0.0003863,14]
[354559207,1740575115468,2574.68,0.00039178,14]
[354559208,1740575115545,935.21,0.00038904,14]
[354559209,1740575115572,226.67710732,0.00038356,14]
[354559210,1740575115739,2574.68,0.00039452,14]
[354559211,1740575115782,935.21,0.00039178,14]
[354559212,1740575116031,935.21,0.00039452,14]
[354559213,1740575116057,2574.68,0.00039726,14]
[354559214,1740575116277,935.21,0.00039726,14]
[354559215,1740575116304,2574.68,0.0004,14]
[354559216,1740575116521,935.21,0.0004,14]
[354559217,1740575117475,1947.41,0.00038356,14]
[354559218,1740575117724,1947.41,0.0003863,14]
[354559219,1740575117970,1947.41,0.00038904,14]
[354559220,1740575118198,1947.41,0.00039178,14]
[354559221,1740575118284,2982.05,0.00038356,14]
[354559222,1740575118437,1947.41,0.00039452,14]
[354559223,1740575118518,2982.05,0.0003863,14]
[354559224,1740575118685,1947.41,0.00039726,14]
[354559225,1740575118801,2982.05,0.00038904,14]
[354559226,1740575118941,1947.41,0.0004,14]
[354559227,1740575119476,2982.05,0.00039178,14]
[354559228,1740575119717,2982.05,0.00039452,14]
[354559229,1740575119989,2982.05,0.00039726,14]
[354559230,1740575120629,2982.05,0.0004,14]
[354559232,1740575122567,892.23,0.00038356,14]
[354559233,1740575122801,892.23,0.0003863,14]
[354559234,1740575123125,892.23,0.00038904,14]
[354559235,1740575123418,892.23,0.00039178,14]
[354559236,1740575123646,892.23,0.00039452,14]
[354559237,1740575123882,892.23,0.00039726,14]
[354559238,1740575123946,1187.85,0.00038356,14]
[354559239,1740575124129,892.23,0.0004,14]
[354559240,1740575124305,1187.85,0.0003863,14]
[354559241,1740575124556,1187.85,0.00038904,14]
[354559242,1740575124801,1187.85,0.00039178,14]
[354559243,1740575125129,1187.85,0.00039452,14]
[354559244,1740575125338,1187.85,0.00039726,14]
[354559245,1740575125592,1187.85,0.0004,14]
[354559246,1740575126907,500.0,0.00038356,14]
[354559248,1740575127442,505.82117348,0.00038356,14]
[354559249,1740575129550,500.0,0.00038356,14]
[354559250,1740575129828,500.0,0.0003863,14]
[354559251,1740575130040,515.0334975,0.00038904,14]
[354559252,1740575131236,2471.55,0.00038356,14]
[354559253,1740575131293,2471.55,0.0003863,14]
[354559254,1740575131433,2471.55,0.00038904,14]
[354559255,1740575131515,2471.55,0.00039178,14]
[354559256,1740575131757,2471.55,0.00039452,14]
[354559257,1740575132038,631.4,0.00038356,14]
[354559258,1740575132173,2471.55,0.00039726,14]
[354559259,1740575132229,658.09,0.00038356,14]
[354559260,1740575132283,631.4,0.0003863,14]
[354559261,1740575132363,2471.55,0.0004,14]
[354559262,1740575132469,658.09,0.0003863,14]
[354559263,1740575132552,631.4,0.00038904,14]
[354559264,1740575132584,1163.86,0.00038356,14]
[354559265,1740575132716,658.09,0.00038904,14]
[354559266,1740575132792,631.4,0.00039178,14]
[354559267,1740575132823,1163.86,0.0003863,14]
[354559268,1740575132949,658.09,0.00039178,14]
[354559269,1740575132996,250.0,0.00021,2]
[354559270,1740575133038,631.4,0.00039452,14]
[354559271,1740575133068,1163.86,0.00038904,14]
[354559272,1740575133298,631.4,0.00039726,14]
[354559273,1740575133326,1163.86,0.00039178,14]
[354559274,1740575133569,631.4,0.0004,14]
[354559275,1740575133597,1163.86,0.00039452,14]
[354559276,1740575133694,658.09,0.00039452,14]
[354559277,1740575133818,1163.86,0.00039726,14]
[354559278,1740575133947,658.09,0.00039726,14]
[354559279,1740575134078,300.0,0.00023,2]
[354559280,1740575134115,1163.86,0.0004,14]
[354559281,1740575134510,658.09,0.0004,14]
[354559282,1740575135197,350.0,0.00025,2]
[354559283,1740575135854,659.58,0.00038356,14]
[354559284,1740575136153,659.58,0.0003863,14]
[354559285,1740575136288,400.0,0.00027,2]
[354559286,1740575136403,659.58,0.00038904,14]
[354559287,1740575136657,659.58,0.00039178,14]
[354559288,1740575136906,659.58,0.00039452,14]
[354559289,1740575137164,659.58,0.00039726,14]
[354559290,1740575137678,450.0,0.00029,2]
[354559291,1740575137706,659.58,0.0004,14]
[354559293,1740575143657,500.0,0.00038356,14]
[354559294,1740575144130,500.0,0.00038356,14]
[354559295,1740575144386,500.0,0.0003863,14]
[354559296,1740575144624,500.0,0.00038904,14]
[354559297,1740575144931,500.0,0.00039178,14]
[354559298,1740575145283,500.0,0.00039452,14]
[354559299,1740575145543,500.0,0.00039726,14]
[354559300,1740575145803,829.5,0.00038356,14]
[354559301,1740575146074,829.5,0.0003863,14]
[354559302,1740575146331,829.5,0.00038904,14]
[354559303,1740575146532,500.0,0.0004,14]
[354559304,1740575146582,829.5,0.00039178,14]
[354559305,1740575146824,829.5,0.00039452,14]
[354559306,1740575147078,829.5,0.00039726,14]
[354559307,1740575147148,4725.47,0.00038356,14]
[354559308,1740575147333,829.5,0.0004,14]
[354559309,1740575147389,4725.47,0.0003863,14]
[354559310,1740575147634,4725.47,0.00038904,14]
[354559311,1740575147878,4725.47,0.00039178,14]
[354559312,1740575148130,4725.47,0.00039452,14]
[354559313,1740575148397,4725.47,0.00039726,14]
[354559314,1740575148991,4725.47,0.0004,14]
[354559315,1740575149987,500.0,0.00038356,14]
[354559316,1740575150227,500.0,0.0003863,14]
[354559317,1740575150472,500.0,0.00038904,14]
[354559318,1740575150721,500.0,0.00039178,14]
[354559319,1740575150971,500.0,0.00039452,14]
[354559320,1740575151255,500.0,0.00039726,14]
[354559321,1740575151377,2087.01,0.00038356,14]
[354559322,1740575151459,500.0,0.0004,14]
[354559323,1740575152081,2087.01,0.0003863,14]
[354559324,1740575152154,2087.01,0.00038904,14]
[354559325,1740575152218,2087.01,0.00039178,14]
[354559326,1740575152420,2087.01,0.00039452,14]
[354559327,1740575152673,500.0,0.00038356,14]
[354559328,1740575152700,2087.01,0.00039726,14]
[354559329,1740575152919,2087.01,0.0004,14]
[354559330,1740575152945,500.0,0.0003863,14]
[354559331,1740575153203,500.0,0.00038904,14]
[354559332,1740575153476,500.0,0.00039178,14]
[354559333,1740575153789,633.48131355,0.00039452,14]
[354559334,1740575156407,1242.91,0.00038356,14]
[354559335,1740575156665,1242.91,0.0003863,14]
[354559336,1740575156923,1242.91,0.00038904,14]